Workbook

Sheet 监控、广播、网络
A1: 监控、广播、网络设施设备
A2: 序号 | B2: 项目名称 | C2: 型号 | D2: 样式图片 | E2: 单位 | F2: 数量 | G2: 单价 | H2: 合计 | I2: 技术参数
A3: 1 | B3: 110报警器 | E3: 个 | F3: 1 | G3: 1680 | H3: =G3*F3 -> 1,680.00 | I3: 按主管部门要求提供检测报告
A4: 2 | B4: 智能星光摄像机 | C4: DS-2CD3T46DWDV3-I3 | E4: 个 | F4: 58 | G4: 460 | H4: =G4*F4 -> 26,680.00 | I4: 在2304x1296下分辨力可达到1200TVL 信噪比不小于55dB 支持红外补光、白光补光，有效补光距离均能达到30m 需支持IP66防尘防水 支持DC12V供电 内置1个麦克风，1个RJ45网络接口 靶面尺寸为1/2.7英寸
B5: 400万防油污摄像机（厨房） | C5: DS-ECD4045-L3/DNSK(4mm) | E5: 个 | F5: 2 | G5: 620 | H5: 1,240.00 | I5: 具有400万像素 CMOS传感器。 最大分辨率2560x1440 筒机镜头护罩无需任何工具即可实现快速拆卸及安装，方便镜头护罩的清洗、更换。 存储接口：具备USB接口或者存储卡接口连接外部存储介质 具有时钟同步功能 具有视音频参数调节功能 需具大于110dB宽动态 抓拍图片功能：具有手动抓拍、定时抓拍、报警抓拍，并将抓拍图片FTP上传功能设置选项，抓图的时间间隔和报警抓拍图片数量可设置 智能分析功能：具有以下智能分析功能设置选项：音频异常、虚焦侦测、场景变更、区域入侵、越界、进入区域、离开区域、徘徊、人员聚集、快速移动、停车、物品遗留、物品拿取 支持人脸抓拍功能，可对经过设定区域的行人进行人脸检测，当检测到人脸后，可抓拍人脸图片，抓拍图片数量可设 具有人脸跟踪设置选项
B6: 400万人脸抓拍摄像机机 | C6: DS-2CD7T4XYZ-LZS(6mm) | E6: 个 | F6: 1 | G6: 1120 | H6: 1,120.00 | I6: 分辨率设置为2560×1440@25fps，分辨力不小于1400TVL 具有不小于1/1.8"靶面尺寸 像元尺寸不小于2.9um×2.9um 内置GPU芯片 最低照度彩色不大于0.0002 lx，黑白不大于0.0001 lx 宽动态能力不小于120dB 支持H.264、H.265、MJPEG视频编码格式，且具有High Profile编码能力 信噪比不小于58dB 需支持三码流技术，主码流最高≥2560x1440@25fps，子码流≥704x576@25fps，第三码流最高≥1920x1080@25fps 需支持IP67防尘防水 需支持DC12V供电，且在不小于DC12V±30%范围内变化时可以正常工作 设备与客户端之间用200米网线进行传输，数据包丢包率不大于0.1% 在丢包率设置为20%的网络环境下，可正常显示监视画面 ★支持固件安全检验功能，摄像机uboot应采用加密存储，通过离线烧写存储器方式写入的uboot执行程序，不能被硬件微引导程序加载执行。 ★设备具有耀光抑制功能，耀光区域≤1%。
A7: 3 | B7: 录像机 | C7: 8832N-R8 | E7: 台 | F7: 3 | G7: 2500 | H7: 7,500.00 | I7: R系列高性能NVR，专为400W及以上高清监控应用和存储所打造，可广泛应用于各种规模的SMBG场景中，具有如下特性：a) 基础8路1080P解码，开启SVC增强模式，最高可提升至16路1080P解码，告别资源不足；b) 专为高分辨率相机接入设计，最大支持接入各类800万高清/拼接相机等；c) 最大支持满配8T硬盘，满足录像长时间存储需求；d）支持HDMI 4K超高清输出e）平台接入协议丰富，支持萤石、Ehome2.0、ISUP5.0以及GB28181协议，轻松实现平台接入； | J7: 2200元
A8: 4 | B8: 录像机 | C8: 7808N-R | E8: 台 | F8: 1 | G8: 850 | H8: 850.00 | I8: R系列高性能NVR，专为400W及以上高清监控应用和存储所打造，可广泛应用于各种规模的SMBG场景中，具有如下特性： a) 基础8路1080P解码，开启SVC增强模式，最高可提升至16路1080P解码，告别资源不足； b) 专为高分辨率相机接入设计，最大支持接入各类800万高清/拼接相机等； c) 最大支持满配8T硬盘，满足录像长时间存储需求； d）支持HDMI 4K超高清输出 e）平台接入协议丰富，支持萤石、Ehome2.0、ISUP5.0以及GB28181协议，轻松实现平台接入； •2U 标准机箱，支持机架安装； •8盘位，最大支持8TB硬盘 •支持1个HDMI 4K输出 +1个VGA高清1080P异源输出 •支持8路1080P解码（开启SVC增强模式后，8/16路型号可提升至12路1080P解码，32/64路型号可提升至16路1080P解码） •支持H.265、H.264混合解码，最大支持接入8MP高清IPC •2个千兆网口 •16进4出报警口 •2个USB2.0接口（前置）+1个USB3.0接口（后置） | J8: 665元
A9: 5 | B9: 硬盘 | C9: 6T硬盘 | E9: 个 | F9: 16 | G9: 950 | H9: 15,200.00 | I9: 监控专用硬盘 录像储存
A10: 6 | B10: 网线 | C10: 超5 类网线 | E10: 箱 | F10: 8 | G10: 599 | H10: 4,792.00 | I10: 纯铜系列无氧铜
A11: 7 | B11: 电源线 | C11: 监控专用电源线 | E11: 卷 | F11: 8 | G11: 490 | H11: 3,920.00 | I11: 监控专用电源线
A12: 8 | B12: 监控显示屏 | C12: 55寸 | E12: 台 | F12: 3 | G12: 2500 | H12: 7,500.00 | I12: • 支持1920 × 1080高清显示 • 178°/178°广视角 • 三边超窄边框，纤薄机身 • 爱眼不闪屏，低蓝光设计 • HDMI+VGA双接口，丰富连接性和兼容性 • 采用 3D 降噪技术，图像鲜艳明亮，呈现真实细节 • 支持软件展频技术可降低 EMI 辐射 • 支持VESA壁挂
A13: 9 | B13: 交换机 | C13: 16口 | E13: 台 | F13: 4 | G13: 310 | H13: 1,240.00 | I13: 三层网管交换机，交换容量336Gbps，包转发率51Mpps，16口10/100/1000Mbps自适应电口交换机，
A14: 10 | B14: 支架 | E14: 个 | F14: 58 | G14: 9 | H14: 522.00
A15: 11 | B15: 防水箱 | C15: 20*30 | E15: 个 | F15: 58 | G15: 7 | H15: 406.00
A16: 12 | B16: 机柜 | C16: 120*80 | E16: 个 | F16: 1 | G16: 780 | H16: 780.00
A17: 13 | B17: 线管 | C17: 20 | E17: 捆 | F17: 6 | G17: 170 | H17: 1,020.00
A18: 14 | B18: 辅材 | E18: 批 | F18: 1 | G18: 400 | H18: 400.00
A19: 15 | B19: 大门口电子屏 | C19: 单色强力聚彩 | D19: 根据尺寸现场定制据实结算 | E19: 平米 | F19: 9 | G19: 1180 | H19: 10,620.00 | I19: 含大厅食谱电子屏
A20: 16 | B20: 线路传输及安装施工调试 | E20: 个 | F20: 58 | G20: 260 | H20: 15,080.00
A21: （监控系统）以上小计： | H21: =SUM(H3:H20) -> 100,550.00
A22: 1 | B22: 网关路由 | C22: EG-E系列 | E22: 台 | F22: 1 | G22: 1050 | H22: =F22*G22 -> 1,050.00 | I22: 5口全千兆一体化路由器。终端带机量200台，最大支持1000Mbps带宽。整机带5个千兆以太网口，其中固化1个WAN口，3个LAN/WAN可切换口，6个固化LAN口，最大支持4个WAN口。整机最大PoE输出110W，单端口最大输出30W。集成统一网络控制器功能，最大可管理150台支持智能组网特性的EAP、RAP或网管交换机，以及128台以内的ES2xx系列智能交换机。支持应用识别、流量控制、VPN、PPPoE、认证、行为管理等丰富功能
A23: 2 | B23: 核心交换 | C23: NBS5100系列 | E23: 台 | F23: 4 | G23: 410 | H23: 1,640.00 | I23: 三层网管交换机，交换容量336Gbps，包转发率51Mpps，16口10/100/1000Mbps自适应电口交换机，固化4个SFP千兆光口，支持静态路由、三层聚合口、ACL、端口镜像等功能，支持睿易APP和MACC云平台统一管理。
A24: 3 | B24: 无线AP | C24: EAP系列 | E24: 台 | F24: 16 | G24: 230 | H24: 3,680.00 | I24: 1200M双频面板AP，标配典雅白上盖，标准86mm面板盒尺寸，含一个前置百兆下联口和一个后置百兆上联口。内置天线，整机最大无线接入速率1167Mbps，支持802.11b/g/n和802.11a/n/ac Wave1/Wave2，支持AP与路由两种工作模式，支持睿易一体化组网，支持“睿易”APP管理，PoE供电。
A25: 4 | B25: 网线 | C25: 配件 | E25: 箱 | F25: 6 | G25: 590 | H25: 3,540.00 | I25: 网络配件网线
A26: 5 | B26: 水晶头 | C26: 配件 | E26: 盒 | F26: 2 | G26: 40 | H26: 80.00 | I26: 水晶头
A27: 6 | B27: 线路传输及安装施工调试 | F27: 1 | G27: 1000 | H27: 1,000.00
B28: （网络系统）以上小计 | H28: =SUM(H22:H27) -> 10,990.00
A29: 1 | B29: 壁挂 | C29: KD-704 | E29: 个 | F29: 12 | G29: 200 | H29: =F29*G29 -> 2,400.00 | I29: 频率响应：90HZ-16KHZ， 外部尺寸75*200*105MM， ，扬声器尺寸：158MM， 功率：5W-10W
A30: 2 | B30: 音柱 | C30: SP-80W | E30: 支 | F30: 2 | G30: 580 | H30: =F30*G30 -> 1,160.00 | I30: 豪华铝质防水音柱，选用防水单元，室内外均宜，寿命长，灵敏度高，声音清晰明亮 ，配有安装支架，安装便捷 尺寸：810×225×120mm 功率：80W 电压：70V/100V 铝合金壳体 ABS上下盖
A31: 3 | B31: 定压功放 | C31: USB-8.0AP | E31: 台 | F31: 1 | G31: 4880 | H31: 4,880.00 | I31: 三路话筒输入，三路线路输入，一路线路输出，其中一路话筒有默认优先功能，有高低音调节功能，带有USB接口，带继电器控制的8分区输出，便于紧急广播，功率输出短路保护警告、自带提示音报警。 额定功率：800W 1500W/2000W输出形式：1.定压70V/120V 2.定阻4-16欧姆 频率响应：40Hz-18KHz±0.5dB信噪比：话筒部分为＞70dB，线路部分为＞76dB 电源电源：AC220体积：482*480*132mm
A32: 4 | B32: 无线话筒 | C32: KT43-02 | E32: 套 | F32: 1 | G32: 2600 | H32: 2,600.00 | I32: 无线话筒，话筒可充电。
A33: 5 | B33: 音频线 | C33: 200支 | E33: 卷 | F33: 3 | G33: 580 | H33: 1,740.00 | I33: 0.5平 高宝真 音箱线（无氧铜） 200支 100
A34: 6 | B34: 秋叶原 | C34: 一对二 | E34: 根 | F34: 2 | G34: 30 | H34: 60.00 | I34: 1.5米 音频线
A35: 7 | B35: 辅材 | E35: 批 | F35: 1 | G35: 200 | H35: 200.00
A36: 8 | B36: 线路安装施工 调试 | F36: 1 | G36: 2500 | H36: 2,500.00
B37: （广播系统）以上小计 | H37: =SUM(H29:H36) -> 15,540.00
A38: 1 | B38: 全频主扩音箱 | E38: 只 | F38: 2 | G38: 5200 | H38: =F38*G38 -> 10,400.00 | I38: 12英寸高效能的低音单元 1.75英寸钛膜压缩驱动高音单元 箱体面板采用15 mm夹板制作,围板采用特质15mmMDF板，表面经黑色耐磨喷漆处理 70° x 100° 覆盖角设计，具有均匀且平滑的轴向和偏轴向的响应 外观前卫，扎实的钢质防护铁网 精确设计的分频器能优化频率响应 应用：KTV扩声,夜总会、多功能娱乐场所扩声 参数:系统类型：12英寸，2分频，低频反射式 高音单元：1个1.75英寸钛膜压缩高音喇叭，航天级高磁性铁氧体 低音单元：1个12英寸低音喇叭，2.65英寸音圈，航天级高磁性铁氧体 频率范围(-10 dB)1：50 Hz - 20 KHz 频率响应(±3 dB)1：85 Hz - 20 KH 灵敏度(1w/1m)1：97dB 额定阻抗：8 Ohms 最大声压级输出：124dB(峰值:130dB) 重量：19.5KG 额定输入功率2：300W/600 W/1200 W (连续/音乐信号/峰值) 覆盖角：70° x 100°(H x V) 外型尺寸(H x W x D)：602mm*350mm*382mm 箱体结构：梯形，采用15 mm夹板制作,围板采用特质15mmMDF板，表面经黑色耐磨喷漆处理
A39: 2 | B39: 纯后级功放 | E39: 只 | F39: 1 | G39: 5200 | H39: =F39*G39 -> 5,200.00 | I39: 全新外观设计，标准2U机箱高度，适用专业机柜安装放置。 令你使用时更灵活方便。 全功能的保护设施，具有完善的输出短路保护和超温保护功能，散热风扇温控启动令扬声器等输出设备更安全。 具备有高效率大型变压器，大容量电容的滤波电源。保证功放满负载输出时极低失真，低频控制力更强，声音更清晰。 低噪音设计，令功放机工作时噪音极低。 CHA、CHB通道内置相位低通，频点调节电路，方便用户选择使用，可作超低音扩声，也可作全频扩声。 多功能，多通道的整机性能设计，适合多种不同场合的语言传输和扩声。 采用双侧对流渐进式散热系统，在电源部分设置恒温装置，电子强力风扇加强本机的散热，避免机内过热。 用继电器延时的电路实现开机的软启动特性，从而保护了扬声器免受开关机似的电冲击。采用原装进口大东芝功率管放大输出、功率超级强劲。 650W×2 :8Ω，立体声功率:1200W×2 4Ω立体声功率:桥接功率:2000W 8Ω频率响应:20Hz-20kHz、＋0/－0.5dB 总谐波失真:＜0.05%@8Ω1KHz 信噪比:95dB 转换速率:40 V/μs 阻尼系数:＞200@8Ω 输入灵敏度:0.775V/1.0/1.4 保护:峰值限幅，过载，直接，短路，过热，软启动 控制:前面板：电源开关／通道１通道２音量控制器 后面板：模式／灵敏度/限幅器/接地开关
A40: 3 | B40: 数字效果处理器 | E40: 台 | F40: 1 | G40: 3400 | H40: 3,400.00 | I40: 音乐部分(MUS10) 输入电平(Level) 775mVrms _频率响应(Frequency response) 20Hz--20KHz 失真(THD) _信噪比(SNR) >80dB 参量均衡(PEQ) 1--7段 麦克风部分(MIC输入) 输入电平(Level) 50mVrms 频率响应(Frequency response) 20Hz--20KHz 失真(THD) <0.1 信噪比(SNR) >80dB(直通) 参量均衡(PEQ) 1--7段 中置部分(CEN) 输入电平(Level) 775mVrms 频率响应(Frequency response) 20Hz--20KHz 失真(THD) <0.003 _信噪比(SNR) >80dB 参量均衡(PEQ) 1-3段 超低部分(SUB) 输入电平(Level) 775mVrms 频率响应(Frequency response) 20Hz--200Hz 信噪比(SNR) >80dB 环绕部分(SUR) _输入电平(Level) 775mVrms 频率响应(Frequency response) 20Hz--20KHz 失真(THD) <0.003 信噪比(SNR) _>80dB 参量均衡(PEQ) 1-5段
A41: 4 | B41: 专业KTV无线数字话筒 | E41: 套 | F41: 1 | G41: 1380 | H41: 1,380.00 | I41: 频率范围：645.250-680.250MHz 频率宽度：50MHz 信噪比：≥50dB 有效距离：30米 音头类型：动圈式 频道总数：40CH 电源供应：12V DC -- 1000mA
A42: 5 | B42: 线材 | C42: 2.0高清线4K传输 线长15米 | E42: 根 | F42: 1 | G42: 190 | H42: 190.00
A43: 6 | B43: 辅材 | C43: 电源线、排插、插头、线槽等 | E43: 批 | F43: 1 | G43: 200 | H43: 200.00
A44: 7 | B44: 附件 | C44: 吊杆挂架 | E44: 只 | F44: 2 | G44: 80 | H44: 160.00
A45: 8 | B45: 网络机柜 | C45: 豪华玻璃版 | E45: 套 | F45: 1 | G45: 560 | H45: 560.00
A46: 9 | B46: 线材及辅材 | E46: 批 | F46: 1 | G46: 600 | H46: 600.00
A47: 10 | B47: P2.5LED全彩显示屏 | D47: 根据现场定制，据实结算 | E47: 平方 | F47: 10 | G47: 4980 | H47: 49,800.00 | I47: 规格P2.5室内表贴节能全彩LED屏 ▲显示屏尺寸 ≥XX*XX=XXX㎡ 1、像素点间距 2.5±0.05mm 2、结构 LED显示屏显示部分结构可采用钢、铝、镀锌方管、塑料等材料，结构安全坚固 3、外观 LED显示屏的外表面无明显划痕，LED显示屏模组安装应一致，无松动无破裂 4、工作电压 在4.2×(1±10%）VDC范围内能正常工作 ★5、自动校正 数据采集自动共享到网上，客户可自行下载校正数据，进行校正和优化 6、工作环境 -20℃~50℃条件下能正常工作 7、材质 箱体采用镁合金/压铸铝/铁材质 符合，套件采用采用聚碳酸酯和玻璃纤维材质 8、系统调节功能 可通过系统调节参数影响显示效果 9、像素密度 单元大小为320mm×160mm的像素密度为8192点 10、动态扫描 采用行驱动芯片 11、像素组成 1R、1G、1B 12、支持亮度调节功能 13、支持亮度校正、色度校正 14、驱动芯片功能 具有列下消隐功能、倍频刷新率提升、低灰偏色改善 15、支持鬼影消除、暗亮线消除、慢速开启、十字架消除、毛毛虫消除、亮度缓慢变亮功能 16、功能 显示单元均可独立控制，单点故障不影响整屏使用，单元支持带电热插拔；单元板支持前、后维护；系统、电源支持前、后维护 ★17、防伪功能 具备logo、产品型号 18、支持联网一键下载程序文件和调试 19、支持亮暗线拼缝调节 20、整屏平整度 ≤0.1mm ★21、模组平整度 ≤0.04mm ★22、拼接缝 ≤0.04mm 23、最大亮度 ≥600cd/㎡ 24、最高对比度 ≥6000:1 25、水平视角 ≥160° 26、垂直视角 ≥160° 27、亮度均匀性 ≥97% 28、刷新率 ≥1920Hz 29、最大功耗 ≤350W/m2 30、像素中心距精确度 ≤3% 31、像素失控率 <0.01% 32、灰度级数（信号处理深度） 采用14bit技术 ★33、色温 3000K~18000K可调 34、色度均匀性 ±0.002Cx、Cy内 35、低亮高灰 亮度为20%时信号处理深度（灰度级数）达到14bit 36、采用恒流设计 37、换帧频率 60Hz 38、宽色域 测试NTSC色域108.5% 39、平均功耗 ≤150W/m2 40、色度均匀性 -0.003＜Cx＜0.003，-0.003＜Cy＜0.003（校正后） 41、反光率 ≤1.5% ★42、画面延时 ≤500ns 43、衰减率 ≤10%（工作3年） 44、图像质量 LED显示屏图像质量主观评价优 45、防护性能 具有防静电、防电磁干扰、喷三防漆防潮、防腐蚀、防虫、抗震动、抗雷击等功能；具有电源过压、过流、断电保护、分布上电措施、防护等级达到IP50 46、连续工作时间 连续工作时间：≥7×24hrs，支持连续不间断显示 47、使用寿命 ≥100000h ★48、平均无故障时间 MTBF平均无故障时间≥20000h；MTTR平均修复时间≤20分钟 49、屏幕温升 最高亮度（白平衡）持续工作4小时，模组表面温升小于20K 50、高温负荷工作 样品状态：通电工作,试验温度：80℃,试验时间：12h;试验结束后，产品正常工作 51、低温负荷工作 样品状态：通电工作,试验温度：-40℃,试验时间：12h;试验结束后，产品正常工作 52、高温存储 样品放入试验箱中，试验箱内温度80℃，存放48h，无异常 53、低温存储 样品放入试验箱中，试验箱内温度-40℃，存放48h，无异常 54、恒定湿热 样品状态：通电工作,试验温度：85℃,相对湿度：85%,试验时间：168h;试验结束后，产品正常工作 55、湿热负载 LED显示屏最高工作环境温度下，相对湿度87%-93%，通电工作12h;试验结束后，产品正常工作 56、光生物安全检测 无危害类：8h（30000s）曝辐中不造成光化学紫外危害（ES），并在16min（1000s）内不造成近紫外危害（EUVA），并在2.8h（10000s）内不造成对视网膜蓝光危害（LB）并在10s内不造成对视网膜热危害（LR），且在1000s内不造成对眼睛的红外辐射危害（EIR） 57、盐雾等级 达到盐雾10级 58、阻燃 PCB板、防火保护外壳达到V-0等级 59、振动试验 频率循环范围：（5～55～5）Hz,震动试验，试验结束后，产品正常工作 60、冷热冲击 低温：-40℃，时间：0.5h，高温：100℃，时间：0.5h，转换时间：（3-5分钟）min，试验周期：上述试验为1个循环，试验进行200循环，样品状态：非工作状态；试验结束后，产品正常工作 61、PCB板材 采用玻璃化温度≥150℃的覆铜板 ★62、失真效果检测 显示画面无几何畸变、扭曲、比例失调情况，无亮度、色温非线性失真。 ★63、能耗对比 对LED显示屏进行节能对比，达到能效一级标准 64、高低温循环 低温：-40℃，时间：0.5h，高温：80℃，时间：0.5h，转换时间：（3-5分钟）min，试验周期：上述试验为1个循环，试验进行200循环，样品状态：工作状态；试验结束后，产品正常工作 65、电磁兼容/干扰 符合Class B标准 66、抗紫外线UV检测合格 ★67、噪声 1m范围内，测试4个位置（前后左右）噪音不大于2dB 68、抗电强度 在电源插头与金属外壳之间以施加试验电压1.5kV/50Hz，保持1min，不应出现飞弧和击穿现象。 69、对地漏电流 mA ≤3.5 ★70、抗干扰 符合IEC801规定 ★71、安全性 符合GB4793规定 ★72、一键点屏 支持一键点屏技术，开机后自动识别系统连接，无需重置系统配置 73、防碰撞 具备防碰撞焊盘技术 ★74、SELV电路 具备SELV电路 75、箱体防护等级 IK10 76、人眼视觉舒适度 VICO指数≤1 77、PCB层数 PCB采用2层、4层、6层、8层、10层设计 78、PCB板材 采用玻璃化温度≥150℃的覆铜板 79、失真效果检测 显示画面无几何畸变、扭曲、比例失调情况，无亮度、色温非线性失真 80、能耗对比 对LED显示屏进行节能对比，达到能效一级标准 81、机械强度 结构设计合理，具有足够的机械强度 82、250N的恒定作用力试验 250N的力施加在外部外壳上，无危险 83、冲击试验 用一个直径50mm、质地500g±25g的光滑的实心钢球，使其从距样品垂直距离（H）为1.3米处自由落到样品上，样品试验后无损伤 84、棱缘和拐角 充分倒圆和磨光
B48: 控制接收系统 | E48: 套 | F48: 1 | H48: =F48*G48 -> 0 | I48: 1、集成HUB75，无需再配转接板，更方便，成本更低； 2、减少接插连接件，减少故障点，故障率更低； 3、支持常规芯片实现高刷新、高灰度、高亮度； 4、全新灰度引擎，低灰度表现更佳； 5、细节处理更完美，可消除单元板设计引起的某行偏暗、低灰偏红、鬼影等细节问题； 6、支持14bit精度的色度、亮度一体化逐点校正； 7、支持所有常规芯片、PWM芯片和灯饰芯片； 8、支持静态屏、1/2~1/64扫之间的任意扫描类型； 9、支持任意抽点，支持数据偏移，可轻松实现各种异型屏、球形屏、创意显示屏； 10、单卡支持16组RGB信号输出； 11、支持超大带载面积，单卡带载128*512，256*256； 12、先进设计，优质元器件，全自动高低温老化测试，零故障出厂； 13、支持DC 3.3V~6V超宽工作电压，有效减弱电压波动带来的影响； ★14、为保证信号传输的稳定性，接收卡需支持一帧延迟，发送端到显示端延迟达到一帧 ★15、为保证接收卡能够持久运行，需具有电击和能量危险的防护
B49: 控制发送系统 | E49: 套 | F49: 1 | H49: 0 | I49: 1、支持广播级缩放及多画面显示。具备8个千兆网口输出，单机可支持最宽8192像素，或最高4096像素的LED显示屏。同时，还具备一系列丰富实用的功能，可以实现灵活的屏幕控制和高品质的图像显示，在LED显示屏工程应用领域具有显著优势。 2、支持丰富的数字信号接口，包括1路SDI，1路HDMI，2路DVI； 3、最大输入分辨率1920*1200@60Hz，支持分辨率任意设置； 4、最大带载520万像素，最宽可达8192点，或最高可达4096点； 5、支持视频源任意切换，任意缩放； 6、支持三画面显示，位置、大小可自由调节； 7、支持HDCP1.4； 8、双USB2.0高速通讯接口，用于电脑调试和主控间任意级联； 9、支持亮度和色温调节； 10、支持低亮高灰；
B50: 智控盒（带投屏功能） | E50: 台 | F50: 1 | H50: 0 | I50: 1、外形尺寸 机身有logo、产品型号、软件下载二维码，1U机箱高度，可上机架安装 2、解码方式 采用硬件解码，支持多视频窗口同步解码播放，播放流畅不卡顿 3、输出接口 支持HDMI/DP接口 4、输入接口 支持HDMI输入、USB2.0、USB3.0输入、RJ45网口输入 5、加密功能 支持WIFI密码加密、APP账号登录，双重加密设置，保证LED显示画面安全 6、传输功能 支持手机、平板、电脑、优盘等方式上传素材 7、播放功能 支持字幕、视频、图片、文本、日期、时钟、天气、音乐图层混合显示，最多支持10图层显示，图层位置、大小可自由调节 8、控制功能 支持所见所得手指拖动操作界面，可通过分辨率调整或拖动画面对输入图像进行拼接、缩放 9、点对点播放 无需处理器，即可实现点对点播放 10、投屏功能 支持手机、平板、电脑投屏 11、会议功能 支持会议模式、会议主题管理、主题一键切换 12、图像处理功能 支持画面拼接、缩放、裁剪功能 13、测试画面功能 支持各种基色原色显示，可测试屏幕坏点 14、字幕功能 支持滚动字幕，速度可调，字体颜色可调，字体大小缩放，支持轨迹文字播放，可随意定义轨迹 15、图片功能 支持图片任意漫游，自定义移动路径、联动图片播放 16、点播功能 支持图片、视频点播，即点即播 17、U盘功能 支持U盘即插即播/素材导入，自动循环播放 18、Logo显示功能 支持LOGO叠加，可以任意根据需要进行叠加固定LOGO 19、日期功能 支持日期图层叠加，位置、大小可自由调节 20、时钟功能 支持时钟图层叠加，位置、大小可自由调节 21、天气功能 支持天气图层叠加，位置、大小可自由调节 22、音乐功能 支持音乐图层，音量、位置可自由调节，各层视频/音乐音量分开控制。
B51: 显示屏开关电源 | E51: 套 | F51: 1 | H51: 0 | I51: 1、防伪功能 具备logo、产品型号 2、外形结构 楞缘及拐角均充分倒圆和磨光 3、丝印标示 丝印标示清晰明显，有节能、危险警告、输入输出电压电流、功率、极性指示等标示 4、泄漏电流 泄漏电流≤0.25mA 5、接地阻抗 外壳与大地阻抗≤10mΩ 6、保护功能 输入AC端自带保护盖，且具备过流、断路、短路、过压、欠压、防雷等保护功能 7、抗电强度 输入对输出，AC2000V/1min；输入对地，AC1500V/1min；输出对地，AC500V/1min 8、平均无故障时间 MTBF≥10000H 9、输入电压范围 180VAC～264VAC
B52: 配电柜 | E52: 台 | F52: 1 | H52: 0 | I52: 1、防伪功能 具备logo、产品型号 2、安全性 内部线材均采用4平方厘米国标纯铜导线； 3、双重开关控制 具备自动/手动控制设备供电的开启和关闭； 4、多组输出回路 每组可独立控制，如照明输出、风机/空调输出分路、显示屏输出分路分开控制 5、上电保护功能 具有延时启动、浪涌保护、防雷、过流、短路等保护功能； 6、功能性检测 具有电源状态指示、运行状态指示、风机、空调指示、检修多功能插座及检修照明开关； 7、额定工作电压 380V/220V
B53: 钢结构 | E53: ㎡ | H53: 0 | I53: 1、钢结构尺寸 2、钢结构：钢架构件（含接合板）采用Q235B钢制作，结构用钢应符合《GB700-88》规定的Q235要求，保证其抗拉强度、伸长率、屈服点，碳、硫、磷的极限含量； 3、焊条：手工焊：Q235连接用E43系列焊条； 4、自动焊：Q235连接用H08系列焊条； 5、要求：抗震7级，抗风8级； 6、包边：不锈钢包边；
B54: 备品及配件 | E54: 套 | F54: 1
B55: 辅助设备 | E55: 套
A56: 11 | B56: 线路安装施工 调试 | E56: 套 | F56: 1 | G56: 1500 | H56: =F56*G56 -> 1,500.00
A57: LED专项小计 | H57: 49,800.00
A58: （多媒体系统）以上小计 | H58: =H57+H56+SUM(H38:H46) -> 73,390.00
A59: 以上合计（元） | I59: =H21+H28+H37+SUM(H38:H46)+H57+H56 -> 200,470.00
